fUST/lending_fUST_20250507
["ID","MTS","AMOUNT","RATE_DAILY","PERIOD"]
[360120889,1746556259638,-151.0,0.00019726,2]
[360120890,1746556259648,-400.0,0.00019726,2]
[360120891,1746556259657,-1358.88,0.00019726,2]
[360120892,1746556259667,-400.0,0.00019726,2]
[360120893,1746556259677,-400.0,0.00019726,2]
[360120894,1746556259687,-151.0,0.00019726,2]
[360120895,1746556259801,-151.0,0.00019726,2]
[360120896,1746556259811,-403.89954191,0.00019726,2]
[360120897,1746556259821,-400.0,0.00019726,2]
[360120898,1746556259830,-400.0,0.00019726,2]
[360120899,1746556259840,-400.0,0.00019726,2]
[360120900,1746556259849,-400.0,0.00019726,2]
[360120901,1746556259859,-400.0,0.00019726,2]
[360120902,1746556259869,-400.0,0.00019726,2]
[360120903,1746556259878,-400.0,0.00019726,2]
[360120904,1746556259888,-857.42,0.00019726,2]
[360120905,1746556259897,-400.0,0.00019726,2]
[360120906,1746556259907,-400.0,0.00019726,2]
[360120907,1746556259917,-400.0,0.00019726,2]
[360120908,1746556259926,-518.61,0.00019726,2]
[360120909,1746556259935,-779.44,0.00019726,2]
[360120910,1746556259945,-400.0,0.00019726,2]
[360120911,1746556259955,-400.0,0.00019726,2]
[360120912,1746556259965,-199.186872,0.00019726,2]
[360120913,1746556259974,-400.0,0.00019726,2]
[360120914,1746556259985,-400.0,0.00019726,2]
[360120915,1746556259994,-400.0,0.00019726,2]
[360120916,1746556260004,-400.0,0.00019726,2]
[360120917,1746556260015,-553.59,0.00019726,2]
[360120918,1746556260025,-157.35116353,0.00019726,2]
[360120919,1746556260035,-400.0,0.00019726,2]
[360120920,1746556260045,-500.0,0.00019726,2]
[360120921,1746556260056,-400.0,0.00019726,2]
[360120922,1746556260067,-583.66,0.00019726,2]
[360120923,1746556260077,-400.0,0.00019726,2]
[360120924,1746556260087,-400.0,0.00019726,2]
[360120925,1746556260099,-407.33338974,0.00019726,2]
[360120926,1746556260109,-400.0,0.00019726,2]
[360120927,1746556260119,-1671.52,0.00019726,2]
[360120928,1746556260128,-400.0,0.00019726,2]
[360120929,1746556260138,-400.0,0.00019726,2]
[360120930,1746556260148,-896.18,0.00019726,2]
[360120931,1746556260157,-400.0,0.00019726,2]
[360120932,1746556260167,-400.0,0.00019726,2]
[360120933,1746556260178,-400.0,0.00019726,2]
[360120934,1746556260188,-611.24,0.00019726,2]
[360120935,1746556260197,-151.0,0.00019726,2]
[360120936,1746556260207,-400.0,0.00019726,2]
[360120937,1746556260216,-400.0,0.00019726,2]
[360120938,1746556260226,-400.0,0.00019726,2]
[360120939,1746556260235,-151.0,0.00019726,2]
[360120940,1746556260245,-400.0,0.00019726,2]
[360120941,1746556260254,-400.0,0.00019726,2]
[360120942,1746556260264,-400.0,0.00019726,2]
[360120943,1746556260274,-400.0,0.00019726,2]
[360120944,1746556260284,-1515.05,0.00019726,2]
[360120945,1746556260295,-400.0,0.00019726,2]
[360120946,1746556260305,-400.0,0.00019726,2]
[360120947,1746556260315,-400.0,0.00019726,2]
[360120948,1746556260325,-400.0,0.00019726,2]
[360120949,1746556260335,-692.67,0.00019726,2]
[360120950,1746556260345,-400.0,0.00019726,2]
[360120951,1746556260354,-400.0,0.00019726,2]
[360120952,1746556260364,-400.0,0.00019726,2]
[360120953,1746556260374,-400.0,0.00019726,2]
[360120954,1746556260384,-400.0,0.00019726,2]
[360120955,1746556260395,-400.0,0.00019726,2]
[360120956,1746556260405,-400.0,0.00019726,2]
[360120957,1746556260416,-430.15802287,0.00019726,2]
[360120958,1746556260426,-3041.56,0.00019726,2]
[360120959,1746556260436,-319.98224628,0.00019726,2]
[360120960,1746556260446,-400.0,0.00019726,2]
[360120961,1746556260456,-400.0,0.00019726,2]
[360120962,1746556260466,-400.0,0.00019726,2]
[360120963,1746556260475,-1423.51,0.00019726,2]
[360120964,1746556260484,-500.0,0.00019726,2]
[360120965,1746556260493,-460.13,0.00019726,2]
[360120966,1746556260503,-151.0,0.00019726,2]
[360120967,1746556260512,-501.96523987,0.00019726,2]
[360120968,1746556260522,-400.0,0.00019726,2]
[360120969,1746556260532,-758.77,0.00019726,2]
[360120970,1746556260542,-400.0,0.00019726,2]
[360120971,1746556260552,-3637.57,0.00019726,2]
[360120972,1746556260562,-151.0,0.00019726,2]
[360120973,1746556260571,-151.0,0.00019726,2]
[360120974,1746556260581,-400.0,0.00019726,2]
[360120975,1746556260590,-2670.92,0.00019726,2]
[360120976,1746556260599,-2159.99,0.00019726,2]
[360120977,1746556260609,-400.0,0.00019726,2]
[360120978,1746556260619,-5693.77,0.00019726,2]
[360120979,1746556260628,-400.0,0.00019726,2]
[360120980,1746556260638,-400.0,0.00019726,2]
[360120981,1746556260647,-600.58,0.00019726,2]
[360120982,1746556260656,-1119.95,0.00019726,2]
[360120983,1746556260665,-400.0,0.00019726,2]
[360120984,1746556260674,-2451.0,0.00019726,2]
[360120985,1746556260684,-945.39,0.00019726,2]
[360120986,1746556260693,-400.0,0.00019726,2]
[360120987,1746556260703,-400.0,0.00019726,2]
[360120988,1746556260712,-400.0,0.00019726,2]
[360120989,1746556260722,-1641.79,0.00019726,2]
[360120990,1746556260731,-400.0,0.00019726,2]
[360120991,1746556260740,-400.0,0.00019726,2]
[360120992,1746556260749,-400.0,0.00019726,2]
[360120993,1746556260758,-400.0,0.00019726,2]
[360120994,1746556260767,-451.19,0.00019726,2]
[360120995,1746556260777,-1219.05,0.00019726,2]
[360120996,1746556260786,-400.0,0.00019726,2]
[360120997,1746556260795,-400.0,0.00019726,2]
[360120998,1746556260804,-1957.05,0.00019726,2]
[360120999,1746556260814,-400.0,0.00019726,2]
[360121000,1746556260824,-400.0,0.00019726,2]
[360121001,1746556260833,-2880.62,0.00019726,2]
[360121002,1746556260842,-400.0,0.00019726,2]
[360121003,1746556260851,-406.27990152,0.00019726,2]
[360121004,1746556260860,-400.0,0.00019726,2]
[360121005,1746556260870,-400.0,0.00019726,2]
[360121006,1746556260880,-4275.0,0.00019726,2]
[360121007,1746556260890,-452.1,0.00019726,2]
[360121008,1746556260899,-151.0,0.00019726,2]
[360121009,1746556260909,-151.0,0.00019726,2]
[360121010,1746556260918,-400.0,0.00019726,2]
[360121011,1746556260928,-1351.99,0.00019726,2]
[360121012,1746556260938,-1982.6,0.00019726,2]
[360121013,1746556260947,-688.43,0.00019726,2]
[360121014,1746556260957,-917.94,0.00019726,2]
[360121015,1746556260966,-400.0,0.00019726,2]
[360121016,1746556260976,-503.80666547,0.00019726,2]
[360121017,1746556260986,-1730.35,0.00019726,2]
[360121018,1746556260995,-400.0,0.00019726,2]
[360121019,1746556261005,-437.22,0.00019726,2]
[360121020,1746556261014,-400.0,0.00019726,2]
[360121021,1746556261023,-745.27,0.00019726,2]
[360121022,1746556261033,-2394.23,0.00019726,2]
[360121023,1746556261043,-634.58,0.00019726,2]
[360121024,1746556261052,-1762.42,0.00019726,2]
[360121025,1746556261062,-1234.29,0.00019726,2]
[360121026,1746556261071,-400.0,0.00019726,2]
[360121027,1746556261081,-400.0,0.00019726,2]
[360121028,1746556261090,-216.6160112,0.00019726,2]
[360121029,1746556261104,-700.18,0.00019726,2]
[360121030,1746556261114,-400.0,0.00019726,2]
[360121031,1746556261124,-400.0,0.00019726,2]
[360121032,1746556261133,-438.48,0.00019726,2]
[360121033,1746556261144,-461.86,0.00019726,2]
[360121034,1746556261153,-400.0,0.00019726,2]
[360121035,1746556261163,-400.0,0.00019726,2]
[360121036,1746556261173,-400.0,0.00019726,2]
[360121037,1746556261183,-400.0,0.00019726,2]
[360121038,1746556261192,-400.0,0.00019726,2]
[360121039,1746556261202,-2110.51,0.00019726,2]
[360121040,1746556261213,-400.0,0.00019726,2]
[360121041,1746556261223,-778.7,0.00019726,2]
[360121042,1746556261234,-2433.51,0.00019726,2]
[360121043,1746556261243,-400.0,0.00019726,2]
[360121044,1746556261253,-1456.25,0.00019726,2]
[360121045,1746556261262,-1102.09,0.00019726,2]
[360121046,1746556261272,-400.0,0.00019726,2]
[360121047,1746556261283,-3021.87,0.00019726,2]
[360121048,1746556261292,-403.09,0.00019726,2]
[360121049,1746556261302,-400.0,0.00019726,2]
[360121050,1746556261406,-400.0,0.00019726,2]
[360121051,1746556261416,-897.74,0.00019726,2]
[360121052,1746556261426,-458.42,0.00019726,2]
[360121053,1746556261435,-400.0,0.00019726,2]
[360121054,1746556261444,-500.0,0.00019726,2]
[360121055,1746556261454,-400.0,0.00019726,2]
[360121056,1746556261463,-400.0,0.00019726,2]
[360121057,1746556261472,-400.0,0.00019726,2]
[360121058,1746556261481,-3687.73,0.00019726,2]
[360121059,1746556261491,-400.0,0.00019726,2]
[360121060,1746556261500,-1815.93,0.00019726,2]
[360121061,1746556261509,-537.13136702,0.00019726,2]
[360121062,1746556261519,-400.0,0.00019726,2]
[360121063,1746556261528,-532.07,0.00019726,2]
[360121064,1746556261538,-1379.79,0.00019726,2]
[360121065,1746556261547,-1046.682964,0.00019726,2]
[360121066,1746556261557,-400.0,0.00019726,2]
[360121067,1746556261566,-1046.682964,0.00019726,2]
[360121068,1746556261576,-2021.67,0.00019726,2]
[360121069,1746556261585,-400.0,0.00019726,2]
[360121070,1746556261595,-400.0,0.00019726,2]
[360121071,1746556261604,-400.0,0.00019726,2]
[360121072,1746556261614,-1046.682964,0.00019726,2]
[360121073,1746556261624,-1046.682964,0.00019726,2]
[360121074,1746556261633,-400.0,0.00019726,2]
[360121075,1746556261643,-400.0,0.00019726,2]
[360121076,1746556261652,-400.0,0.00019726,2]
[360121077,1746556261661,-19331.77,0.00019726,2]
[360121078,1746556261671,-1481.29,0.00019726,2]
[360121079,1746556261680,-422.8,0.00019726,2]
[360121080,1746556261690,-630.1,0.00019726,2]
[360121081,1746556261699,-400.0,0.00019726,2]
[360121082,1746556261709,-400.0,0.00019726,2]
[360121083,1746556261718,-400.0,0.00019726,2]
[360121084,1746556261728,-400.0,0.00019726,2]
[360121085,1746556261737,-400.0,0.00019726,2]
[360121086,1746556261747,-400.0,0.00019726,2]
[360121087,1746556261757,-405.75510111,0.00019726,2]
[360121088,1746556261766,-400.0,0.00019726,2]
[360121089,1746556261776,-841.77,0.00019726,2]
[360121090,1746556261785,-400.0,0.00019726,2]
[360121091,1746556261796,-400.0,0.00019726,2]
[360121092,1746556261806,-1000.0,0.00019726,2]
[360121093,1746556261815,-400.0,0.00019726,2]
[360121094,1746556261825,-400.0,0.00019726,2]
[360121095,1746556261835,-1985.81,0.00019726,2]
[360121096,1746556261844,-400.0,0.00019726,2]
[360121097,1746556261854,-400.0,0.00019726,2]
[360121098,1746556261864,-268.97095,0.00019726,2]
[360121099,1746556261873,-400.0,0.00019726,2]
[360121100,1746556261883,-486.29,0.00019726,2]
[360121101,1746556261893,-400.0,0.00019726,2]
[360121102,1746556261902,-1311.27,0.00019726,2]
[360121103,1746556261912,-1755.77,0.00019726,2]
[360121104,1746556261922,-400.0,0.00019726,2]
[360121105,1746556261931,-1475.17,0.00019726,2]
[360121106,1746556261941,-7534.29,0.00019726,2]
[360121107,1746556261951,-400.0,0.00019726,2]
[360121108,1746556261961,-8873.46,0.00019726,2]
[360121109,1746556261971,-400.0,0.00019726,2]
[360121110,1746556261980,-358.0,0.00019726,2]
[360121111,1746556261990,-400.0,0.00019726,2]
[360121112,1746556261999,-2833.0,0.00019726,2]
[360121113,1746556262008,-400.0,0.00019726,2]
[360121114,1746556262018,-400.0,0.00019726,2]
[360121115,1746556262028,-400.0,0.00019726,2]
[360121116,1746556262038,-442.77,0.00019726,2]
[360121117,1746556262047,-1499.83,0.00019726,2]
[360121118,1746556262056,-400.0,0.00019726,2]
[360121119,1746556262066,-427.19,0.00019726,2]
[360121120,1746556262076,-400.0,0.00019726,2]
[360121121,1746556262086,-563.37,0.00019726,2]
[360121122,1746556262098,-1081.24,0.00019726,2]
[360121123,1746556262115,-613.87,0.00019726,2]
[360121124,1746556262133,-509.99697885,0.00019726,2]
[360121125,1746556262153,-400.0,0.00019726,2]
[360121126,1746556262172,-400.0,0.00019726,2]
[360121127,1746556262192,-400.0,0.00019726,2]
[360121128,1746556262210,-1377.75,0.00019726,2]
[360121129,1746556262230,-400.0,0.00019726,2]
[360121130,1746556262250,-2573.72,0.00019726,2]
[360121131,1746556262268,-400.0,0.00019726,2]
[360121132,1746556262286,-400.0,0.00019726,2]
[360121133,1746556262305,-400.0,0.00019726,2]
[360121134,1746556262320,-460.53,0.00019726,2]
[360121135,1746556262339,-400.0,0.00019726,2]
[360121136,1746556262353,-384.36037893,0.00019726,2]
[360121137,1746556262370,-9056.13,0.00019726,2]
[360121138,1746556262386,-400.0,0.00019726,2]
[360121139,1746556262401,-400.0,0.00019726,2]
[360121140,1746556262417,-640.19,0.00019726,2]
[360121141,1746556262432,-547.45027408,0.00019726,2]
[360121142,1746556262446,-400.0,0.00019726,2]
[360121143,1746556262462,-400.0,0.00019726,2]
[360121144,1746556262478,-332.75881654,0.00019726,2]
[360121145,1746556262492,-400.0,0.00019726,2]
[360121146,1746556262507,-400.0,0.00019726,2]
[360121147,1746556262522,-400.0,0.00019726,2]
[360121148,1746556262537,-2370.45,0.00019726,2]
[360121149,1746556262553,-400.0,0.00019726,2]
[360121150,1746556262568,-698.58,0.00019726,2]
[360121151,1746556262583,-400.0,0.00019726,2]
[360121152,1746556262598,-256.226979,0.00019749,2]
[360121153,1746556262613,-500.0,0.00019773,2]
[360121154,1746556262628,-151.0,0.000199,2]
[360121155,1746556262644,-151.0,0.000199,2]
[360121156,1746556262659,-227.75999,0.000199,2]
[360121157,1746556262676,-227.75999,0.000199,2]
[360121158,1746556262691,-1968.1315789,0.000199,2]
[360121159,1746556262706,-174.646678,0.000199,2]
[360121160,1746556262721,-174.646678,0.000199,2]
[360121161,1746556262736,-151.0,0.000199,2]
[360121162,1746556262751,-151.0,0.000199,2]
[360121163,1746556262768,-3517.51675573,0.000199,2]
[360121164,1746556262783,-151.0,0.0001999,2]
[360121165,1746556262798,-160.0,0.00019998,3]
[360121166,1746556262814,-313.9004746,0.00019998,3]
[360121167,1746556262829,-841.96455721,0.00019998,3]
[360121168,1746556262843,-212.03916285,0.00019999,3]
[360121169,1746556262858,-12610.21250885,0.00019999,3]
[360121170,1746556262873,-151.0,0.00019999,2]
[360121171,1746556262889,-151.0,0.00019999,2]
[360121172,1746556262904,-151.0,0.00019999,2]
[360121173,1746556262919,-151.0,0.00019999,2]
[360121174,1746556262934,-151.0,0.00019999,2]
[360121175,1746556262949,-1046.682964,0.00019999,2]
[360121176,1746556262964,-1046.682964,0.00019999,2]
[360121177,1746556262980,-262.35132528,0.00019999,2]
[360121178,1746556262996,-327307.41718,0.0002,2]
[360121179,1746556263011,-20040.87901633,0.0002,2]
[360121180,1746556263026,-3779.7698712,0.0002,2]
[360121181,1746556263042,-2685.73064456,0.0002,2]
[360121182,1746556263058,-1000.0,0.0002,3]
[360121183,1746556263073,-31087.16295903,0.0002,2]
[360121184,1746556263088,-11231.96883391,0.0002,2]
[360121210,1746557432399,-500.0,0.00015997,2]
[360121211,1746557432409,-500.0,0.00015997,2]
[360121212,1746557432419,-500.0,0.00015997,2]
[360121213,1746557432428,-500.0,0.00015997,2]
[360121214,1746557432437,-500.0,0.00015997,2]
[360121215,1746557432448,-500.0,0.00015997,2]
[360121216,1746557432457,-500.0,0.00015997,2]
[360121217,1746557432467,-500.0,0.00015997,2]
[360121218,1746557432476,-337.52217057,0.00015997,2]
[360121219,1746557432486,-500.0,0.00015997,2]
[360121220,1746557432496,-500.0,0.00015997,2]
[360121221,1746557432506,-500.0,0.00015997,2]
[360121222,1746557432516,-500.0,0.00015997,2]
[360121223,1746557432526,-500.0,0.00015997,2]
[360121224,1746557432536,-500.0,0.00015997,2]
[360121225,1746557432546,-500.0,0.00015997,2]
[360121226,1746557432556,-500.0,0.00015997,2]
[360121227,1746557432567,-500.0,0.00015997,2]
[360121228,1746557432577,-500.0,0.00015997,2]
[360121229,1746557432586,-500.0,0.00015997,2]
[360121230,1746557432596,-500.0,0.00015997,2]
[360121231,1746557432606,-500.0,0.00015997,2]
[360121232,1746557432615,-244.06704607,0.00015997,2]
[360121233,1746557432625,-2067.21782104,0.00016,2]
[360121234,1746557432638,-2616.22050098,0.00016,2]
[360121235,1746557432648,-864.16808077,0.00016085,2]
[360121236,1746557432658,-206.08427036,0.000169,2]
[360121237,1746557432667,-356.666218,0.00017035,2]
[360121238,1746557432677,-1008.23063484,0.00017184,2]
[360121239,1746557432689,-699.856,0.00017184,2]
[360121240,1746557432702,-1811.98103416,0.00017184,2]
[360121241,1746557432711,-631.8422033,0.0001788,2]
[360121242,1746557432721,-453.81104367,0.00018748,2]
[360121257,1746557438316,-1379.42499992,0.00018748,2]
[360121258,1746557438533,-3166.76395641,0.00018748,2]
[360121259,1746557438543,-154.36259486,0.00018978,2]
[360121260,1746557438553,-863.72,0.00019068,3]
[360121261,1746557438564,-552.38520618,0.00019073,2]
[360121262,1746557438573,-460.94208668,0.00019073,2]
[360121263,1746557438583,-500.0,0.00019073,2]
[360121264,1746557438592,-500.0,0.00019073,2]
[360121265,1746557438601,-500.0,0.00019073,2]
[360121266,1746557438610,-500.0,0.00019073,2]
[360121267,1746557438619,-500.0,0.00019073,2]
[360121268,1746557438627,-500.0,0.00019073,2]
[360121269,1746557438636,-500.0,0.00019073,2]
[360121270,1746557438645,-500.0,0.00019073,2]
[360121271,1746557438654,-500.0,0.00019073,2]
[360121272,1746557438663,-500.0,0.00019073,2]
[360121273,1746557438672,-500.0,0.00019073,2]
[360121274,1746557438681,-500.0,0.00019073,2]
[360121275,1746557438690,-500.0,0.00019073,2]
[360121276,1746557438699,-500.0,0.00019073,2]
[360121277,1746557438710,-500.0,0.00019073,2]
[360121278,1746557438720,-421.85758914,0.00019073,2]
[360121279,1746557438730,-504.34210829,0.00019073,2]
[360121280,1746557438739,-500.0,0.00019073,2]
[360121281,1746557438750,-500.0,0.00019073,2]
[360121282,1746557438759,-500.0,0.00019073,2]
[360121283,1746557438768,-500.0,0.00019073,2]
[360121284,1746557438777,-500.0,0.00019073,2]
[360121285,1746557438786,-370000.0,0.00019078,2]
[360121286,1746557438795,-500.0,0.00019078,2]
[360121287,1746557438805,-1432.83466568,0.0001908,2]
[360121288,1746557438815,-168.49427722,0.00019166,2]
[360121289,1746557438824,-500.0,0.00019173,2]
[360121290,1746557438833,-500.0,0.00019173,2]
[360121291,1746557438842,-500.0,0.00019173,2]
[360121292,1746557438851,-340.44994791,0.00019173,2]
[360121293,1746557438860,-500.0,0.00019173,2]
[360121294,1746557438870,-286.26615067,0.00019173,2]
[360121295,1746557438879,-500.0,0.00019173,2]
[360121296,1746557438888,-500.0,0.00019173,2]
[360121297,1746557438898,-500.0,0.00019173,2]
[360121298,1746557438907,-500.0,0.00019173,2]
[360121299,1746557438916,-500.78456312,0.00019173,2]
[360121300,1746557438925,-500.0,0.00019173,2]
[360121301,1746557438935,-500.0,0.00019173,2]
[360121302,1746557438943,-500.0,0.00019173,2]
[360121303,1746557438953,-300.0,0.00019173,2]
[360121304,1746557438962,-500.0,0.00019173,2]
[360121305,1746557438972,-500.0,0.00019173,2]
[360121306,1746557438980,-500.0,0.00019173,2]
[360121307,1746557438989,-517.41451339,0.00019173,2]
[360121308,1746557438999,-500.0,0.00019173,2]
[360121309,1746557439008,-505.99404103,0.00019173,2]
[360121310,1746557439017,-500.0,0.00019173,2]
[360121311,1746557439027,-500.0,0.00019173,2]
[360121312,1746557439036,-500.0,0.00019173,2]
[360121313,1746557439045,-500.0,0.00019173,2]
[360121314,1746557439054,-500.0,0.00019173,2]
[360121315,1746557439064,-500.0,0.00019173,2]
[360121316,1746557439073,-500.0,0.00019173,2]
[360121317,1746557439082,-500.0,0.00019173,2]
[360121318,1746557439091,-500.0,0.00019173,2]
[360121319,1746557439100,-500.0,0.00019173,2]
[360121320,1746557439108,-500.0,0.00019173,2]
[360121321,1746557439117,-500.0,0.00019173,2]
[360121322,1746557439126,-500.0,0.00019173,2]
[360121323,1746557439135,-500.0,0.00019173,2]
[360121324,1746557439144,-500.0,0.00019173,2]
[360121325,1746557439153,-500.0,0.00019173,2]
[360121326,1746557439162,-500.0,0.00019173,2]
[360121327,1746557439171,-500.0,0.00019173,2]
[360121328,1746557439181,-500.0,0.00019173,2]
[360121329,1746557439190,-500.0,0.00019173,2]
[360121330,1746557439199,-151.0,0.00019178,2]
[360121331,1746557439208,-151.0,0.00019178,2]
[360121332,1746557439218,-315.551739,0.00019178,2]
[360121333,1746557439227,-315.551739,0.00019178,2]
[360121334,1746557439238,-400.0,0.00019178,2]
[360121335,1746557439250,-151.0,0.00019178,2]
[360121336,1746557439260,-401.22799411,0.00019178,2]
[360121337,1746557439269,-400.0,0.00019178,2]
[360121338,1746557439278,-401.39677314,0.00019178,2]
[360121339,1746557439288,-401.30935804,0.00019178,2]
[360121340,1746557439297,-400.0,0.00019178,2]
[360121341,1746557439307,-400.0,0.00019178,2]
[360121342,1746557439317,-400.0,0.00019178,2]
[360121343,1746557439326,-400.0,0.00019178,2]
[360121344,1746557439335,-151.0,0.00019178,2]
[360121345,1746557439345,-400.84686798,0.00019178,2]
[360121346,1746557439354,-151.0,0.00019178,2]
[360121347,1746557439363,-400.0,0.00019178,2]
[360121348,1746557439373,-401.42416385,0.00019178,2]
[360121349,1746557439382,-400.0,0.00019178,2]
[360121350,1746557439391,-400.0,0.00019178,2]
[360121351,1746557439400,-151.0,0.00019178,2]
[360121352,1746557439409,-400.0,0.00019178,2]
[360121353,1746557439419,-403.83784036,0.00019178,2]
[360121354,1746557439429,-400.0,0.00019178,2]
[360121355,1746557439438,-400.0,0.00019178,2]
[360121356,1746557439447,-400.0,0.00019178,2]
[360121357,1746557439457,-400.0,0.00019178,2]
[360121358,1746557439468,-400.0,0.00019178,2]
[360121359,1746557439478,-400.0,0.00019178,2]
[360121360,1746557439488,-400.0,0.00019178,2]
[360121361,1746557439498,-403.34072284,0.00019178,2]
[360121362,1746557439507,-400.0,0.00019178,2]
[360121363,1746557439517,-400.0,0.00019178,2]
[360121364,1746557439526,-400.0,0.00019178,2]
[360121365,1746557439535,-503.78798685,0.00019178,2]
[360121366,1746557439545,-402.77803583,0.00019178,2]
[360121367,1746557439554,-400.0,0.00019178,2]
[360121368,1746557439564,-400.0,0.00019178,2]
[360121369,1746557439573,-400.0,0.00019178,2]
[360121370,1746557439583,-501.97207744,0.00019178,2]
[360121371,1746557439592,-153.94588979,0.00019178,2]
[360121372,1746557439602,-402.94644609,0.00019178,2]
[360121373,1746557439612,-400.0,0.00019178,2]
[360121374,1746557439621,-400.0,0.00019178,2]
[360121375,1746557439631,-473.40339252,0.00019178,2]
[360121376,1746557439640,-400.0,0.00019178,2]
[360121377,1746557439650,-209.64157535,0.00019178,2]
[360121378,1746557439660,-500.0,0.00019178,2]
[360121379,1746557439670,-400.0,0.00019178,2]
[360121380,1746557439679,-400.0,0.00019178,2]
[360121381,1746557439689,-400.0,0.00019178,2]
[360121382,1746557439699,-400.0,0.00019178,2]
[360121383,1746557439708,-502.79430711,0.00019178,2]
[360121384,1746557439717,-503.10174603,0.00019178,2]
[360121385,1746557439726,-257.3214084,0.00019178,2]
[360121386,1746557439735,-402.47607156,0.00019178,2]
[360121387,1746557439745,-400.0,0.00019178,2]
[360121388,1746557439754,-400.0,0.00019178,2]
[360121389,1746557439764,-400.0,0.00019178,2]
[360121390,1746557439776,-400.0,0.00019178,2]
[360121391,1746557439786,-400.0,0.00019178,2]
[360121392,1746557439796,-400.0,0.00019178,2]
[360121393,1746557439806,-400.0,0.00019178,2]
[360121394,1746557439816,-400.0,0.00019178,2]
[360121395,1746557439827,-503.55866188,0.00019178,2]
[360121396,1746557439838,-400.0,0.00019178,2]
[360121397,1746557439848,-400.0,0.00019178,2]
[360121398,1746557439858,-400.0,0.00019178,2]
[360121399,1746557439867,-400.0,0.00019178,2]
[360121400,1746557439877,-405.98412562,0.00019178,2]
[360121402,1746557439886,-400.0,0.00019178,2]
[360121403,1746557439895,-401.97286654,0.00019178,2]
[360121404,1746557439905,-400.76641592,0.00019178,2]
[360121405,1746557439914,-400.0,0.00019178,2]
[360121406,1746557439924,-400.0,0.00019178,2]
[360121407,1746557439934,-400.0,0.00019178,2]
[360121409,1746557439943,-400.0,0.00019178,2]
[360121410,1746557439953,-400.0,0.00019178,2]
[360121411,1746557439962,-400.0,0.00019178,2]
[360121412,1746557439972,-400.0,0.00019178,2]
[360121413,1746557439981,-400.0,0.00019178,2]
[360121414,1746557439991,-400.0,0.00019178,2]
[360121415,1746557440001,-400.0,0.00019178,2]
[360121416,1746557440010,-400.0,0.00019178,2]
[360121417,1746557440020,-402.91911364,0.00019178,2]
[360121418,1746557440029,-400.0,0.00019178,2]
[360121419,1746557440039,-400.0,0.00019178,2]
[360121420,1746557440049,-400.0,0.00019178,2]
[360121421,1746557440059,-400.0,0.00019178,2]
[360121422,1746557440069,-235.51168844,0.00019178,2]
[360121423,1746557440078,-400.0,0.00019178,2]
[360121424,1746557440088,-407.37330949,0.00019178,2]
[360121425,1746557440097,-400.0,0.00019178,2]
[360121426,1746557440107,-289.66766909,0.00019178,2]
[360121427,1746557440116,-400.0,0.00019178,2]
[360121428,1746557440126,-400.0,0.00019178,2]
[360121429,1746557440135,-400.0,0.00019178,2]